bitfinex/quotes_SOLUSD_20260202
["timestamp","ask_amount","ask_price","bid_price","bid_amount"]
[1769992957974,3.9748862,102.71,102.67,15.97073323]
[1769992958176,25.59119584,102.73,102.68,25.70972816]
[1769992958591,13.7095995,102.73,102.69,15.97073323]
[1769992959307,3.9748862,102.73,102.69,4.08913689]
[1769992959474,3.9748862,102.73,102.69,15.97073323]
[1769992960075,13.70915218,102.73,102.69,15.97073323]
[1769992960599,3.9748862,102.73,102.69,25.70803754]
[1769992961497,13.70921501,102.73,102.69,25.70803754]
[1769992962007,25.59081135,102.73,102.69,15.97073323]
[1769992962300,25.59081135,102.73,102.69,4.08913689]
[1769992962504,25.59081135,102.73,102.69,25.70872165]
[1769992962679,25.59081135,102.73,102.69,13.82712531]
[1769992964005,15.85648254,102.73,102.69,13.82712531]
[1769992964208,3.9748862,102.73,102.69,25.70872165]
[1769992965312,27.06,102.74,102.71,4.08913689]
[1769992965491,27.06,102.74,102.71,15.97073323]
[1769992965692,36.79335145,102.74,102.7,11.88159634]
[1769992965893,27.06,102.74,102.7,15.97073323]
[1769992966189,25.68933069,102.75,102.7,25.7072568]
[1769992966785,25.68933069,102.75,102.71,4.0226768]
[1769992967007,13.80773435,102.75,102.71,15.90427314]
[1769992967407,25.68933069,102.75,102.71,4.0226768]
[1769992967607,3.90145343,102.74,102.7,9.73652357]
[1769992967807,15.78304977,102.74,102.7,9.73652357]
[1769992968113,11.88159634,102.71,102.67,4.0226768]
[1769992968299,11.88159634,102.71,102.68,9.73869715]
[1769992968481,25.51843725,102.72,102.68,9.73869715]
[1769992968687,15.78304977,102.74,102.69,15.90427314]
[1769992969099,11.88159634,102.73,102.69,4.0226768]
[1769992969900,3.90145343,102.69,102.65,13.76403827]
[1769992970206,11.88159634,102.68,102.65,13.76403827]
[1769992970505,11.88159634,102.68,102.65,4.0226768]
[1769992970908,11.88159634,102.67,102.65,4.0226768]
[1769992971111,11.88159634,102.71,102.67,4.0226768]
[1769992971296,15.78304977,102.72,102.67,15.90427314]
[1769992971496,25.51831585,102.72,102.67,15.90427314]
[1769992971793,11.88159634,102.71,102.67,4.0226768]
[1769992971993,52.57775706,102.73,102.69,4.0226768]
[1769992972228,27.06,102.73,102.7,4.0226768]
[1769992972430,25.61589712,102.75,102.7,25.64100852]
[1769992973395,15.78304977,102.74,102.7,4.0226768]
[1769992973599,11.88159634,102.72,102.68,15.90427314]
[1769992973796,15.78304977,102.72,102.68,13.76142668]
[1769992974000,11.88159634,102.71,102.68,13.76142668]
[1769992974409,25.51849984,102.72,102.68,13.76142668]
[1769992974811,11.88159634,102.7,102.66,4.0226768]
[1769992976018,21.61900348,102.7,102.66,13.76309478]
[1769992976719,13.63768728,102.71,102.67,4.0226768]
[1769992977020,25.51928362,102.71,102.67,15.90427314]
[1769992977222,25.51928362,102.71,102.67,4.0226768]
[1769992978425,15.78304977,102.7,102.66,9.74041798]
[1769992978634,11.88159634,102.69,102.66,9.74041798]
[1769992978833,15.78304977,102.7,102.66,9.74041798]
[1769992979332,11.88159634,102.69,102.66,9.74041798]
[1769992979835,11.88159634,102.69,102.66,13.76309478]
[1769992980433,15.76097414,102.69,102.66,9.74041798]
[1769992981740,9.73808255,102.69,102.66,4.0226768]
[1769992982037,13.63899357,102.7,102.66,4.0226768]
[1769992982264,3.90145343,102.69,102.65,9.74132618]
[1769992982624,13.64014272,102.69,102.65,13.76400298]
[1769992982934,72.2470482,102.7,102.67,4.0226768]
[1769992983247,15.76097414,102.69,102.65,13.76400298]
[1769992983646,15.76097414,102.69,102.65,25.62352369]
[1769992983949,11.85952071,102.66,102.61,4.0226768]
[1769992984120,15.76097414,102.64,102.59,15.88219751]
[1769992984328,11.85952071,102.63,102.6,9.74658869]
[1769992984541,11.85952071,102.63,102.6,13.76926549]
[1769992985050,11.85952071,102.62,102.58,13.77070791]
[1769992985224,11.85952071,102.61,102.58,13.77070791]
[1769992985632,11.85952071,102.61,102.58,4.0226768]
[1769992986233,15.76097414,102.6,102.56,13.77258109]
[1769992986430,11.85952071,102.58,102.56,13.77258109]
[1769992986835,15.76097414,102.62,102.58,4.0226768]
[1769992987036,3.90145343,102.66,102.6,15.88219751]
[1769992987235,11.85952071,102.65,102.61,15.88219751]
[1769992987639,11.85952071,102.65,102.61,4.0226768]
[1769992987952,11.85952071,102.65,102.57,4.2355973]
[1769992987953,15.89011354,102.65,102.57,4.2355973]
[1769992988125,11.85952071,102.64,102.6,25.55699258]
[1769992988638,15.89011354,102.65,102.61,3.95127416]
[1769992988850,25.63212016,102.65,102.61,3.95127416]
[1769992989027,11.85952071,102.63,102.6,9.74619771]
[1769992989227,11.85952071,102.63,102.59,13.69845425]
[1769992989429,11.85952071,102.63,102.6,9.74646266]
[1769992990226,86.0204945,102.64,102.6,9.74646266]
[1769992990644,10.02560735,102.66,102.61,11.85952071]
[1769992990947,9.73819151,102.69,102.64,3.95127416]
[1769992991149,9.73819151,102.69,102.65,15.81079487]
[1769992992741,9.73819151,102.69,102.65,25.55245907]
[1769992993046,4.03059283,102.67,102.63,15.81079487]
[1769992993342,15.89011354,102.67,102.63,13.69459742]
[1769992993647,15.89011354,102.66,102.62,13.69546175]
[1769992994050,15.89011354,102.65,102.61,9.74549772]
[1769992994351,11.85952071,102.63,102.6,3.95127416]
[1769992994547,11.85952071,102.63,102.6,13.69767966]
[1769992994759,25.63144531,102.66,102.62,3.95127416]
[1769992995045,27.06,102.67,102.63,15.81079487]
[1769992995250,31.09059283,102.67,102.63,15.81079487]
[1769992995545,15.89011354,102.69,102.64,15.81079487]
[1769992995752,4.03059283,102.66,102.62,13.6956645]
[1769992995924,76.27764103,102.66,102.62,3.95127416]
[1769992996123,76.27764103,102.66,102.61,21.60467094]
[1769992996124,72.2470482,102.65,102.61,9.74515023]
[1769992996334,72.2470482,102.65,102.61,13.69642439]
[1769992996543,15.89011354,102.64,102.6,9.74624093]
[1769992996740,15.89011354,102.64,102.6,13.69751509]
[1769992996939,25.6329378,102.64,102.6,13.69751509]
[1769992997137,11.85952071,102.63,102.6,3.95127416]
[1769992997535,25.6329378,102.64,102.6,13.6978367]
[1769992997928,11.85952071,102.64,102.61,3.95127416]
[1769992998129,60.38752749,102.65,102.62,15.81079487]
[1769992998945,4.03059283,102.7,102.66,3.95127416]
[1769992999145,13.76779031,102.7,102.66,3.95127416]
[1769992999341,13.76779031,102.7,102.65,9.7410074]
[1769992999342,4.03059283,102.68,102.65,9.7410074]
[1769993000028,15.89011354,102.68,102.65,9.7410074]
[1769993000229,4.03059283,102.68,102.65,9.7410074]
[1769993000426,15.89011354,102.7,102.65,25.55180227]
[1769993000651,4.03059283,102.69,102.65,25.55180227]
[1769993000849,15.89011354,102.71,102.66,15.81079487]
[1769993001050,11.85952071,102.69,102.65,9.7410074]
[1769993001259,11.85952071,102.68,102.64,25.55307562]
[1769993001456,15.89011354,102.69,102.64,25.55307562]
[1769993001653,15.89011354,102.69,102.65,3.95127416]
[1769993001855,11.85952071,102.7,102.65,15.81079487]
[1769993002055,40.82722831,102.71,102.67,15.81079487]
[1769993002444,52.68674902,102.71,102.67,25.55057164]
[1769993002860,40.82722831,102.71,102.67,25.55057164]
[1769993003042,13.76588702,102.72,102.68,15.81079487]
[1769993003242,25.62540773,102.72,102.68,3.95127416]
[1769993004152,4.03059283,102.7,102.66,15.81079487]
[1769993004464,4.03059283,102.7,102.67,9.73948318]
[1769993004638,4.03059283,102.7,102.66,15.81079487]
[1769993004639,4.03059283,102.7,102.66,25.55120549]
[1769993004840,11.85952071,102.71,102.67,13.69061779]
[1769993005155,125.55142074,102.72,102.67,25.5501385]
[1769993005156,137.41094145,102.72,102.67,25.5501385]
[1769993005653,113.07293522,102.72,102.68,9.73857775]
[1769993005959,101.21341451,102.72,102.68,21.59809846]
[1769993006153,74.15341451,102.72,102.68,21.59809846]
[1769993006535,131.06,102.74,102.71,15.81079487]
[1769993006741,36.79356269,102.74,102.71,11.85952071]
[1769993007139,9.73356269,102.74,102.7,15.81079487]
[1769993007552,13.76415552,102.74,102.7,15.81079487]
[1769993007859,4.03059283,102.7,102.66,13.69165001]
[1769993008055,15.89011354,102.7,102.66,13.69165001]
[1769993008258,4.13059283,102.75,102.7,3.95127416]
[1769993008446,4.13059283,102.75,102.71,11.85952071]
[1769993008757,4.03059283,102.74,102.7,15.81079487]
[1769993008960,4.03059283,102.73,102.69,15.81079487]
[1769993009265,4.03059283,102.69,102.64,11.85952071]
[1769993009459,11.85952071,102.67,102.64,3.95127416]
[1769993009847,15.89011354,102.68,102.64,3.95127416]
[1769993010049,11.85952071,102.67,102.64,3.95127416]
[1769993010244,25.63037716,102.67,102.63,13.69463682]
[1769993010438,11.85952071,102.67,102.63,13.69463682]
[1769993011349,21.59968194,102.67,102.63,13.69463682]
[1769993012972,11.85952071,102.66,102.63,13.69463682]
[1769993013468,4.03059283,102.71,102.65,15.81079487]
[1769993013668,15.89011354,102.7,102.65,15.81079487]
[1769993014359,11.85952071,102.67,102.64,3.95127416]
[1769993014563,15.89011354,102.68,102.64,3.95127416]
[1769993014970,15.89011354,102.68,102.64,13.69327687]
[1769993015469,15.89011354,102.68,102.64,3.95127416]
[1769993015470,25.62920841,102.68,102.64,3.95127416]
[1769993015650,11.85952071,102.66,102.63,9.74336306]
[1769993016960,25.63022508,102.67,102.63,9.74336306]
[1769993017754,11.85952071,102.66,102.62,25.55502599]
[1769993019070,25.63022508,102.67,102.62,25.55502599]
[1769993020246,15.89011354,102.67,102.62,45.96547469]
[1769993020453,25.93151784,102.69,102.65,3.79241546]
[1769993020652,25.93151784,102.69,102.65,15.65193617]
[1769993021267,25.93151784,102.69,102.65,3.79241546]
[1769993021469,15.90869299,102.67,102.63,13.53568599]
[1769993021770,15.90869299,102.65,102.61,13.53760928]
[1769993022570,15.90869299,102.64,102.59,3.79241546]
[1769993022756,15.90869299,102.63,102.59,13.53904705]
[1769993023152,60.38752749,102.66,102.62,11.85952071]
[1769993023153,4.20612251,102.66,102.62,11.85952071]
[1769993023353,4.20612251,102.66,102.63,9.74373964]
[1769993023656,16.06564322,102.65,102.6,21.60562855]
[1769993023861,16.06564322,102.64,102.6,9.74610784]
[1769993024061,16.06564322,102.64,102.6,21.60562855]
[1769993024262,4.20612251,102.61,102.57,11.85952071]
[1769993024459,4.20612251,102.59,102.55,36.23718538]
[1769993024664,4.20612251,102.59,102.57,9.74934224]
[1769993024864,4.20612251,102.59,102.56,9.74993032]
[1769993025060,4.20612251,102.61,102.57,9.74881521]
[1769993025268,4.20612251,102.63,102.6,9.74658869]
[1769993025861,4.20612251,102.63,102.59,21.60659679]
[1769993026079,13.94992174,102.63,102.59,21.60659679]
[1769993027291,25.80944245,102.63,102.59,21.60659679]
[1769993027583,16.06564322,102.61,102.57,9.74894068]
[1769993027968,4.20612251,102.58,102.55,9.7513408]
[1769993028488,16.06564322,102.58,102.54,9.95201041]
[1769993028669,4.20612251,102.58,102.54,21.81153112]
[1769993029065,16.06564322,102.58,102.54,21.81153112]
[1769993029268,16.06564322,102.58,102.54,9.95201041]
[1769993029572,4.20612251,102.57,102.54,9.95212217]
[1769993030502,4.39044565,102.54,102.47,9.95857797]
[1769993030670,15.76564322,102.51,102.47,9.95867841]
[1769993031188,11.85952071,102.5,102.47,0.2]
[1769993031393,3.90612251,102.51,102.47,9.95865291]
[1769993031698,9.00015793,102.53,102.49,11.85952071]
[1769993032074,3.90612251,102.52,102.49,11.85952071]
[1769993032292,5.09403542,102.53,102.51,11.85952071]
[1769993032782,5.09403542,102.53,102.52,11.85952071]
[1769993032972,3.90612251,102.55,102.52,11.85952071]
[1769993033286,3.90612251,102.55,102.53,11.85952071]
[1769993033471,3.90612251,102.57,102.54,11.85952071]
[1769993034688,3.90612251,102.57,102.52,34.73128401]
[1769993034883,3.90612251,102.58,102.55,11.85952071]
[1769993035682,27.08,102.59,102.56,11.85952071]
[1769993035877,3.90612251,102.6,102.57,11.85952071]
[1769993036075,3.90612251,102.6,102.56,11.85952071]
[1769993037183,3.90612251,102.59,102.55,21.6103452]
[1769993037685,13.93870133,102.59,102.55,11.85952071]
[1769993037879,13.93870133,102.59,102.53,11.85952071]
[1769993037880,3.90612251,102.57,102.53,11.85952071]
[1769993038191,15.76564322,102.57,102.53,21.61231521]
[1769993038569,11.85952071,102.58,102.54,11.85952071]
[1769993038769,3.90612251,102.58,102.54,21.61140046]
[1769993040888,25.5127284,102.6,102.55,11.85952071]
[1769993041081,3.90612251,102.62,102.58,11.85952071]
[1769993041587,3.90612251,102.62,102.59,11.85952071]
[1769993041888,3.90612251,102.62,102.58,11.85952071]
[1769993042089,3.90612251,102.6,102.56,21.60953861]
[1769993042277,15.76564322,102.59,102.55,9.75095493]
[1769993042475,11.85952071,102.62,102.53,11.88745778]
[1769993042476,3.90612251,102.57,102.53,11.88745778]
[1769993042788,15.79358029,102.57,102.53,9.75269102]
[1769993043493,3.90612251,102.57,102.54,9.75162104]
[1769993043897,3.90612251,102.56,102.53,9.75285534]
[1769993044388,3.90612251,102.54,102.51,9.75473828]
[1769993044596,15.79358029,102.54,102.51,9.75473828]
[1769993044773,15.79358029,102.54,102.5,9.7556971]
[1769993045669,3.90612251,102.55,102.51,11.88745778]
[1769993045891,3.90612251,102.64,102.54,12.46593878]
[1769993046188,3.90612251,102.6,102.57,11.88745778]
[1769993046389,3.90612251,102.62,102.59,11.88745778]
[1769993046595,3.90612251,102.62,102.6,11.88745778]
[1769993046895,3.90612251,102.62,102.55,11.88745778]
[1769993046896,3.90612251,102.64,102.61,11.88745778]
[1769993047074,3.90612251,102.64,102.62,11.88745778]
[1769993047991,36.82135851,102.66,102.6,24.36604268]
[1769993047992,3.90612251,102.66,102.63,11.88745778]
[1769993049580,13.64710816,102.66,102.62,21.63202846]
[1769993049988,3.90612251,102.65,102.62,11.88745778]
[1769993050296,3.90612251,102.66,102.63,21.63110479]
[1769993050674,3.90612251,102.66,102.63,9.74364701]
[1769993050875,31.18612251,102.68,102.65,11.88745778]
[1769993051080,4.10612251,102.68,102.65,11.88745778]
[1769993051999,4.10612251,102.68,102.65,21.62922769]
[1769993052299,4.10612251,102.68,102.66,11.88745778]
[1769993052779,3.90612251,102.67,102.62,24.35990605]
[1769993052982,3.90612251,102.67,102.57,54.10504358]
[1769993052983,3.90612251,102.66,102.59,0.56887772]
[1769993053194,3.90612251,102.59,102.54,11.88745778]
[1769993053494,3.90612251,102.59,102.56,11.88745778]
[1769993053699,3.90612251,102.61,102.57,11.88745778]
[1769993054194,25.53924384,102.61,102.56,11.88745778]
[1769993054603,11.88745778,102.58,102.53,9.75304173]
[1769993054779,11.88745778,102.57,102.54,9.75201369]
[1769993055092,3.90612251,102.57,102.54,9.75201369]
[1769993055306,11.88745778,102.58,102.54,21.63947147]
[1769993055794,3.90612251,102.6,102.56,11.88745778]
[1769993055992,3.90612251,102.59,102.55,11.88745778]
[1769993056395,15.79358029,102.59,102.55,11.88745778]
[1769993056697,11.88745778,102.58,102.54,9.75201369]
[1769993056880,15.79358029,102.57,102.53,21.6402865]
[1769993057080,15.79358029,102.56,102.52,9.75375621]
[1769993057286,15.79358029,102.56,102.53,9.75319896]
[1769993057482,12.17178092,102.59,102.54,12.45237757]
[1769993057688,3.90612251,102.6,102.56,11.88745778]
[1769993059190,3.90612251,102.58,102.54,11.88745778]
[1769993059395,3.90612251,102.58,102.54,21.63917807]
[1769993059696,25.54062508,102.6,102.55,11.88745778]
[1769993059878,15.79358029,102.6,102.55,11.88745778]
[1769993060084,3.90612251,102.61,102.57,11.88745778]
[1769993060484,3.90612251,102.57,102.53,9.75245121]
[1769993060689,15.79358029,102.57,102.53,9.75245121]
[1769993060903,11.88745778,102.56,102.53,9.75245121]
[1769993061194,3.90612251,102.57,102.54,9.75229006]
[1769993061393,25.54174512,102.59,102.54,21.63974784]
[1769993061598,13.65375975,102.59,102.55,11.88745778]
[1769993061806,25.54121753,102.59,102.54,9.75229006]
[1769993061987,25.54121753,102.59,102.54,21.63974784]
[1769993062302,3.90612251,102.59,102.55,11.88745778]
[1769993062604,15.79358029,102.58,102.54,9.75229006]
[1769993063197,15.79358029,102.57,102.53,9.75281876]
[1769993063399,15.79358029,102.57,102.53,21.64027654]
[1769993063986,3.90612251,102.57,102.53,21.64027654]
[1769993064190,3.90612251,102.57,102.53,46.02338392]
[1769993064397,3.90612251,102.57,102.54,11.88745778]
[1769993064596,3.90612251,102.59,102.56,11.88745778]
[1769993064902,15.79358029,102.63,102.58,11.88745778]
[1769993065202,3.90612251,102.63,102.59,11.88745778]
[1769993065603,13.6498817,102.63,102.59,21.63485154]
[1769993065909,3.90612251,102.63,102.6,11.88745778]
[1769993066601,3.90612251,102.67,102.62,12.44411346]
[1769993066809,3.90612251,102.67,102.65,11.88745778]
[1769993066989,3.90612251,102.67,102.64,11.88745778]
[1769993067590,13.64629034,102.67,102.63,21.63110063]
[1769993068800,3.90612251,102.67,102.63,21.63110063]
[1769993069007,3.90612251,102.67,102.63,9.74364285]
[1769993069207,3.90612251,102.67,102.64,11.88745778]
[1769993069404,3.90612251,102.67,102.63,11.88745778]
[1769993069597,15.79358029,102.64,102.6,21.63404647]
[1769993070203,3.90612251,102.64,102.6,21.63404647]
[1769993070606,21.63016877,102.65,102.6,21.63404647]
[1769993070607,25.53450886,102.66,102.61,11.88745778]
[1769993070792,3.90612251,102.66,102.63,11.88745778]
[1769993071292,13.84541684,102.68,102.65,11.88745778]
[1769993071611,13.64619692,102.67,102.63,21.63100075]
[1769993072499,11.88745778,102.66,102.61,11.88745778]
[1769993072694,15.79358029,102.64,102.6,11.88745778]
[1769993072890,3.90612251,102.64,102.61,21.63261287]
[1769993073708,25.53508513,102.66,102.62,11.88745778]
[1769993074010,3.90612251,102.66,102.64,11.88745778]
[1769993074207,3.90612251,102.65,102.62,11.88745778]
[1769993074410,3.90612251,102.65,102.61,21.63261287]
[1769993074614,13.64649206,102.67,102.63,11.88745778]
[1769993074802,3.90612251,102.66,102.63,11.88745778]
[1769993075504,3.90612251,102.63,102.56,0.54920764]
[1769993075692,30.98612251,102.64,102.6,11.88745778]
[1769993076211,3.90612251,102.64,102.61,11.88745778]
[1769993076588,3.90612251,102.64,102.6,11.88745778]
[1769993076992,3.90612251,102.63,102.59,11.88745778]
[1769993077688,3.90612251,102.61,102.55,4.27527085]
[1769993077909,11.88745778,102.59,102.55,10.29776268]
[1769993078220,15.79358029,102.62,102.57,11.88745778]
[1769993078903,3.90612251,102.62,102.58,11.88745778]
[1769993079103,3.90612251,102.62,102.59,11.88745778]
[1769993079311,3.90612251,102.61,102.57,11.88745778]
[1769993079510,3.90612251,102.61,102.56,12.43285025]
[1769993079826,15.79358029,102.61,102.56,12.43285025]
[1769993080017,25.53925964,102.61,102.57,9.7494394]
[1769993080193,3.90612251,102.58,102.54,21.63953575]
[1769993080596,3.90612251,102.6,102.57,11.88745778]
[1769993080999,52.61875971,102.62,102.57,11.88745778]
[1769993081215,3.90612251,102.61,102.58,11.88745778]
[1769993081426,3.90612251,102.61,102.57,12.43138483]
[1769993082112,3.90612251,102.61,102.58,21.63594676]
[1769993082317,3.90612251,102.62,102.58,21.63594676]
[1769993082820,15.79358029,102.62,102.58,9.74848898]
[1769993083020,3.90612251,102.62,102.58,21.63594676]
[1769993083720,25.53860234,102.62,102.58,9.74848898]
[1769993084806,3.90612251,102.59,102.55,36.26390268]
[1769993085011,15.79358029,102.59,102.55,9.75091029]
[1769993085316,15.79358029,102.58,102.55,9.75113395]
[1769993085501,11.88745778,102.6,102.56,9.75031514]
[1769993085820,15.79358029,102.59,102.55,9.75091064]
[1769993086207,3.90612251,102.59,102.55,21.63836842]
[1769993086521,15.79358029,102.59,102.55,9.75091064]
[1769993087698,9.63794665,102.6,102.56,0.53905668]
[1769993087904,4.05344787,102.64,102.59,12.42651446]
[1769993088208,13.79479175,102.66,102.62,11.88745778]
[1769993088413,4.05344787,102.66,102.63,11.88745778]
[1769993088719,4.05344787,102.65,102.61,11.88745778]
[1769993088925,4.05344787,102.63,102.58,0.5383925]
[1769993089127,4.05344787,102.63,102.58,12.42585028]
[1769993089128,15.94090565,102.63,102.58,12.42585028]
[1769993089513,15.94090565,102.63,102.58,11.88745778]
[1769993089710,0.28432314,102.64,102.56,21.63741247]
[1769993089711,15.94090565,102.61,102.56,21.63741247]
[1769993090013,25.68713179,102.61,102.56,21.63741247]
[1769993090402,11.88745778,102.6,102.56,9.74995469]
[1769993090600,15.94090565,102.6,102.55,22.17610816]
[1769993091516,15.94090565,102.6,102.53,12.42390319]
[1769993091517,15.94090565,102.58,102.53,12.42390319]
[1769993091912,9.7494394,102.57,102.53,22.17665769]
[1769993092114,15.94090565,102.58,102.53,22.17665769]
[1769993092541,4.05344787,102.58,102.54,11.88745778]
[1769993092831,25.68778334,102.6,102.55,11.88745778]
[1769993093410,86.07531083,102.6,102.55,11.88745778]
[1769993094014,74.18785305,102.6,102.56,21.63784779]
[1769993094527,64.44097536,102.6,102.57,11.88745778]
[1769993095026,64.44097536,102.6,102.58,11.88745778]
[1769993095027,4.05344787,102.6,102.58,11.88745778]
[1769993095324,13.79834066,102.62,102.58,11.88745778]
[1769993095528,4.05344787,102.62,102.59,11.88745778]
[1769993096202,4.05344787,102.62,102.58,21.6351977]
[1769993096203,13.79817949,102.62,102.58,21.6351977]
[1769993097411,25.68419066,102.64,102.6,11.88745778]
[1769993097617,4.05344787,102.64,102.61,11.88745778]
[1769993097918,13.7963789,102.64,102.6,11.88745778]
[1769993098440,13.7963789,102.64,102.59,10.2802097]
[1769993098647,13.7963789,102.64,102.6,11.88745778]
[1769993098808,13.7963789,102.64,102.59,10.2802097]
[1769993098809,15.94090565,102.63,102.59,9.74746175]
[1769993099309,4.05344787,102.62,102.59,9.74746175]
[1769993099918,4.05344787,102.63,102.59,21.63491953]
[1769993100122,4.05344787,102.63,102.6,9.74643386]
[1769993100322,4.05344787,102.65,102.61,11.88745778]
[1769993100525,4.05344787,102.67,102.63,11.88745778]
[1769993100718,4.05344787,102.67,102.65,11.88745778]
[1769993100928,0.2,102.68,102.65,11.88745778]
[1769993101127,4.05344787,102.67,102.62,9.74412771]
[1769993101334,4.05344787,102.66,102.63,21.63087621]
[1769993101711,4.05344787,102.66,102.64,9.74273498]
[1769993101914,4.05344787,102.66,102.63,9.74345287]
[1769993102135,4.05344787,102.66,102.63,21.63091065]
[1769993102520,4.05344787,102.66,102.63,21.60809499]
[1769993102720,4.25344787,102.68,102.64,21.60738411]
[1769993103039,0.2,102.68,102.66,11.86464212]
[1769993103353,4.25344787,102.71,102.67,11.86464212]
[1769993103674,4.05344787,102.73,102.7,11.86464212]
[1769993103834,4.05344787,102.74,102.72,11.86464212]
[1769993104243,4.05344787,102.74,102.7,11.86464212]
[1769993104432,15.91808999,102.72,102.67,11.86464212]
[1769993104650,15.91808999,102.72,102.68,11.86464212]
[1769993104848,4.05344787,102.72,102.69,21.60268866]
[1769993105237,31.13344787,102.74,102.7,11.86464212]
[1769993105439,0.1,102.75,102.73,11.86464212]
[1769993105641,0.1,102.75,102.74,11.86464212]
[1769993105859,4.05344787,102.74,102.69,34.61136316]
[1769993106068,4.05344787,102.72,102.68,21.60340062]
[1769993106362,4.05344787,102.7,102.66,11.86464212]
[1769993106565,4.05344787,102.68,102.64,21.60663189]
[1769993106856,15.91808999,102.69,102.65,9.74172663]
[1769993107060,25.65635474,102.69,102.64,21.60710174]
[1769993107441,4.05344787,102.67,102.64,9.74264476]
[1769993107641,4.09715468,102.71,102.66,11.86464212]
[1769993107833,4.09715468,102.73,102.69,11.86464212]
[1769993108036,4.09715468,102.73,102.7,11.86464212]
[1769993108244,4.09715468,102.72,102.68,11.86464212]
[1769993108742,4.09715468,102.72,102.69,11.86464212]
[1769993108939,4.09715468,102.74,102.71,11.86464212]
[1769993109143,4.09715468,102.73,102.69,11.86464212]
[1769993109344,4.09715468,102.73,102.68,11.86464212]
[1769993109345,4.09715468,102.72,102.68,11.86464212]
[1769993109654,4.09715468,102.71,102.68,11.86464212]
[1769993110252,15.9617968,102.71,102.66,21.60518608]
[1769993110450,4.09715468,102.7,102.66,21.60518608]
[1769993111263,4.09715468,102.7,102.67,11.86464212]
[1769993111767,4.09715468,102.69,102.66,11.86464212]
[1769993111941,4.09715468,102.69,102.65,21.60608374]
[1769993112339,4.09715468,102.68,102.6,0.52405403]
[1769993112649,0.28432314,102.69,102.6,0.52405403]
[1769993112650,4.09715468,102.65,102.61,21.61008688]
[1769993112851,15.9617968,102.64,102.6,9.74590847]
[1769993113047,4.09715468,102.64,102.6,21.61078893]
[1769993113248,15.9617968,102.64,102.6,9.74614681]
[1769993113462,11.86464212,102.63,102.59,11.86464212]
[1769993113757,15.9617968,102.64,102.6,11.86464212]
[1769993113957,4.09715468,102.64,102.61,11.86464212]
[1769993114160,15.9617968,102.64,102.6,21.61097952]
[1769993114350,4.09715468,102.63,102.6,9.7463374]
[1769993115043,4.09715468,102.63,102.6,21.61097952]
[1769993115752,15.9617968,102.64,102.59,11.86464212]
[1769993116070,15.9617968,102.63,102.58,11.86464212]
[1769993117064,4.09715468,102.6,102.56,9.75001272]
[1769993117261,15.9617968,102.6,102.56,9.75001272]
[1769993117440,25.70907357,102.6,102.56,9.75001272]
[1769993117645,4.09715468,102.59,102.55,21.61555867]
[1769993118770,4.09715468,102.59,102.55,9.75091655]
[1769993118947,4.09715468,102.59,102.56,11.86464212]
[1769993119455,4.09715468,102.59,102.55,21.61555867]
[1769993119654,4.09715468,102.6,102.57,11.86464212]
[1769993120550,4.09715468,102.64,102.59,11.86464212]
[1769993120753,4.09715468,102.64,102.58,11.86464212]
[1769993120754,4.09715468,102.62,102.58,11.86464212]
[1769993121856,13.84197037,102.62,102.58,21.6130955]
[1769993122060,4.09715468,102.6,102.56,11.86464212]
[1769993122950,13.84376887,102.6,102.56,21.61449023]
[1769993123150,15.9617968,102.58,102.52,0.51894392]
[1769993123353,15.9617968,102.58,102.53,11.86464212]
[1769993123558,4.09715468,102.57,102.53,21.61743683]
[1769993123769,4.38147782,102.59,102.55,11.86464212]
[1769993124065,4.09715468,102.59,102.53,0.51894392]
[1769993124250,4.09715468,102.58,102.54,21.6165046]
[1769993124451,15.9617968,102.58,102.53,21.61747416]
[1769993124658,4.09715468,102.56,102.53,9.75283204]
[1769993124869,4.09715468,102.58,102.54,21.61671428]
[1769993125052,25.71047448,102.58,102.54,11.86464212]
[1769993125261,4.09715468,102.57,102.54,21.61691509]
[1769993125767,27.06,102.62,102.56,14.59343809]
[1769993126064,9.74321933,102.64,102.6,11.86464212]
[1769993126252,11.86464212,102.64,102.57,2.72879597]
[1769993126447,11.86464212,102.62,102.57,11.86464212]
[1769993127151,11.86464212,102.61,102.56,9.74989735]
[1769993127459,11.86464212,102.59,102.54,21.61676065]
[1769993127670,15.9617968,102.57,102.52,14.59259642]
[1769993127857,15.9617968,102.58,102.54,11.86464212]
[1769993128061,4.09715468,102.58,102.55,11.86464212]
[1769993128259,4.09715468,102.6,102.55,2.72754071]
[1769993128661,4.09715468,102.6,102.56,11.86464212]
[1769993129067,4.09715468,102.6,102.56,9.75039001]
[1769993129268,4.09715468,102.6,102.56,21.61503213]
[1769993129463,4.09715468,102.63,102.59,11.86464212]
[1769993129678,15.9617968,102.63,102.56,2.72713186]
[1769993129874,15.9617968,102.59,102.53,24.38124568]
[1769993130079,15.9617968,102.59,102.55,9.75125336]
[1769993130376,4.09715468,102.58,102.55,9.75125336]
[1769993130574,4.09715468,102.6,102.56,11.86464212]
[1769993130875,4.09715468,102.6,102.55,34.12960538]
[1769993130876,4.09715468,102.6,102.57,11.86464212]
[1769993131063,11.86464212,102.62,102.55,34.12960538]
[1769993131064,4.09715468,102.62,102.58,11.86464212]
[1769993131265,4.09715468,102.62,102.58,21.61255056]